[Event "*** Titled Tuesday Blitz"]
[Site "Chess.com"]
[Date "2020.11.10"]
[Round "7"]
[White "Mikasinski"]
[Black "A-S-00"]
[Result "1-0"]
[WhiteElo "2482"]
[BlackElo "2345"]
[TimeControl "180+1"]
[EndTime "11:21:20 PST"]
[Termination "Mikasinski won by resignation"]

1. e4 {[%clk 0:03:00.9]} 1... c5 {[%clk 0:02:57.6]} 2. Nf3 {[%clk 0:03:01.1]}
2... d6 {[%clk 0:02:57.9]} 3. d4 {[%clk 0:03:01.8]} 3... cxd4 {[%clk 0:02:58.3]}
4. Nxd4 {[%clk 0:03:02.7]} 4... Nf6 {[%clk 0:02:58.7]} 5. Nc3 {[%clk 0:03:03.3]}
5... g6 {[%clk 0:02:59.1]} 6. Be3 {[%clk 0:03:03.4]} 6... Bg7 {[%clk 0:02:59.6]}
7. f3 {[%clk 0:03:04.1]} 7... O-O {[%clk 0:02:58.6]} 8. Qd2 {[%clk 0:03:04.7]}
8... d5 {[%clk 0:02:48.2]} 9. e5 {[%clk 0:02:57.7]} 9... Ne8 {[%clk 0:02:42.1]}
10. f4 {[%clk 0:02:37.1]} 10... Nc6 {[%clk 0:02:40.3]} 11. O-O-O {[%clk
0:02:28.3]} 11... Nc7 {[%clk 0:02:31.9]} 12. Nb3 {[%clk 0:02:00.5]} 12... e6
{[%clk 0:02:15.2]} 13. h4 {[%clk 0:01:56]} 13... h5 {[%clk 0:01:31.6]} 14. g4
{[%clk 0:01:54.8]} 14... hxg4 {[%clk 0:01:18.8]} 15. h5 {[%clk 0:01:53.7]} 15...
Ne7 {[%clk 0:01:14.8]} 16. h6 {[%clk 0:01:34.9]} 16... Bh8 {[%clk 0:01:14.2]}
17. h7+ {[%clk 0:01:35.3]} 17... Kg7 {[%clk 0:01:03.7]} 18. f5 {[%clk
0:01:34.1]} 18... f6 {[%clk 0:00:56.2]} 19. Bh6+ {[%clk 0:01:14.5]} 19... Kf7
{[%clk 0:00:54.5]} 20. Bxf8 {[%clk 0:01:15.1]} 20... Qxf8 {[%clk 0:00:53.6]} 21.
fxg6+ {[%clk 0:00:58.3]} 21... Nxg6 {[%clk 0:00:51.2]} 22. exf6 {[%clk
0:00:56.9]} 22... Bxf6 {[%clk 0:00:48.6]} 23. Bd3 {[%clk 0:00:54.3]} 23... Nh8
{[%clk 0:00:41.5]} 24. Rdf1 {[%clk 0:00:52.7]} 24... Ke7 {[%clk 0:00:21.8]} 25.
Rh6 {[%clk 0:00:48]} 25... Ne8 {[%clk 0:00:18.7]} 26. Qe3 {[%clk 0:00:44.1]}
26... Qg7 {[%clk 0:00:13.2]} 27. Nxd5+ {[%clk 0:00:43.7]} 27... Kd8 {[%clk
0:00:10.3]} 28. Nxf6 {[%clk 0:00:44]} 1-0

[Event "*** Titled Tuesday Blitz"]
[Site "Chess.com"]
[Date "2020.11.10"]
[Round "7"]
[White "chito89"]
[Black "Fortitudine"]
[Result "1-0"]
[WhiteElo "2831"]
[BlackElo "2309"]
[TimeControl "180+1"]
[EndTime "11:21:21 PST"]
[Termination "chito89 won by resignation"]

1. e4 {[%clk 0:02:58.2]} 1... c5 {[%clk 0:02:59.1]} 2. Nf3 {[%clk 0:02:57.8]}
2... d6 {[%clk 0:02:58.7]} 3. d4 {[%clk 0:02:55.3]} 3... cxd4 {[%clk 0:02:58.3]}
4. Nxd4 {[%clk 0:02:56.2]} 4... Nf6 {[%clk 0:02:58.5]} 5. Nc3 {[%clk 0:02:56.3]}
5... Nc6 {[%clk 0:02:58.9]} 6. Bg5 {[%clk 0:02:53.6]} 6... Bd7 {[%clk
0:02:59.3]} 7. Qd2 {[%clk 0:02:53.1]} 7... Rc8 {[%clk 0:02:58.8]} 8. O-O-O
{[%clk 0:02:51.5]} 8... Nxd4 {[%clk 0:02:59]} 9. Qxd4 {[%clk 0:02:52.4]} 9...
Qa5 {[%clk 0:02:59.2]} 10. Bxf6 {[%clk 0:02:49]} 10... gxf6 {[%clk 0:02:58.8]}
11. Kb1 {[%clk 0:02:49.4]} 11... Qc5 {[%clk 0:02:51.9]} 12. Qd2 {[%clk
0:02:44.9]} 12... f5 {[%clk 0:02:20.6]} 13. exf5 {[%clk 0:02:39.7]} 13... Bg7
{[%clk 0:02:17.1]} 14. f6 {[%clk 0:02:38.7]} 14... Bxf6 {[%clk 0:02:14.8]} 15.
Ne4 {[%clk 0:02:39]} 15... Qe5 {[%clk 0:02:05.6]} 16. Nxf6+ {[%clk 0:02:35.2]}
16... Qxf6 {[%clk 0:02:06.5]} 17. Bd3 {[%clk 0:02:31.4]} 17... O-O {[%clk
0:01:44.9]} 18. f4 {[%clk 0:02:26.3]} 18... Bf5 {[%clk 0:01:38.7]} 19. Bxf5
{[%clk 0:02:09.3]} 19... Qxf5 {[%clk 0:01:39.6]} 20. Rhe1 {[%clk 0:02:09.6]}
20... e6 {[%clk 0:01:36.2]} 21. g4 {[%clk 0:02:07.9]} 21... Qc5 {[%clk
0:01:28.5]} 22. f5 {[%clk 0:02:06.2]} 22... Kh8 {[%clk 0:00:43.9]} 23. fxe6
{[%clk 0:01:59.1]} 23... fxe6 {[%clk 0:00:39.1]} 24. Rxe6 {[%clk 0:02:00]} 24...
Rf2 {[%clk 0:00:31]} 25. Re2 {[%clk 0:01:57.1]} 25... Rcf8 {[%clk 0:00:20.7]}
26. c3 {[%clk 0:01:34.4]} 26... Rxe2 {[%clk 0:00:16.5]} 27. Qxe2 {[%clk
0:01:35.3]} 27... Qg5 {[%clk 0:00:12.3]} 28. Rxd6 {[%clk 0:01:30.8]} 28... Qf4
{[%clk 0:00:11.2]} 29. Rd7 {[%clk 0:01:21.4]} 29... Qf1+ {[%clk 0:00:09]} 30.
Qxf1 {[%clk 0:01:20.9]} 30... Rxf1+ {[%clk 0:00:09.9]} 31. Kc2 {[%clk
0:01:21.6]} 31... Rg1 {[%clk 0:00:09.8]} 32. Rxb7 {[%clk 0:01:15.8]} 32... Rxg4
{[%clk 0:00:09.6]} 33. Rxa7 {[%clk 0:01:15.8]} 33... Rg2+ {[%clk 0:00:10.2]} 34.
Kb3 {[%clk 0:01:15.9]} 34... Rxh2 {[%clk 0:00:11.1]} 35. a4 {[%clk 0:01:16.7]}
35... h5 {[%clk 0:00:11.5]} 36. a5 {[%clk 0:01:16.2]} 36... h4 {[%clk
0:00:11.9]} 37. a6 {[%clk 0:01:16.6]} 37... Rh1 {[%clk 0:00:12.5]} 38. Rb7
{[%clk 0:01:15.9]} 38... Ra1 {[%clk 0:00:12.5]} 39. a7 {[%clk 0:01:16.4]} 39...
h3 {[%clk 0:00:10.8]} 40. Rb8+ {[%clk 0:01:16.8]} 40... Kg7 {[%clk 0:00:10.3]}
41. a8=Q {[%clk 0:01:17.7]} 41... Rxa8 {[%clk 0:00:10.5]} 42. Rxa8 {[%clk
0:01:18.6]} 42... h2 {[%clk 0:00:11.3]} 43. Ra1 {[%clk 0:01:19.2]} 1-0

[Event "*** Titled Tuesday Blitz"]
[Site "Chess.com"]
[Date "2020.11.10"]
[Round "7"]
[White "Michaelson_11"]
[Black "DarZay"]
[Result "0-1"]
[WhiteElo "2090"]
[BlackElo "2056"]
[TimeControl "180+1"]
[EndTime "11:21:25 PST"]
[Termination "DarZay won by resignation"]

1. e4 {[%clk 0:03:00.9]} 1... e5 {[%clk 0:02:55.9]} 2. Nf3 {[%clk 0:02:59.7]}
2... Nc6 {[%clk 0:02:55.9]} 3. Nc3 {[%clk 0:03:00.6]} 3... Nf6 {[%clk
0:02:53.8]} 4. Bb5 {[%clk 0:03:00.9]} 4... d6 {[%clk 0:02:49.9]} 5. d4 {[%clk
0:02:58.5]} 5... exd4 {[%clk 0:02:48.2]} 6. Nxd4 {[%clk 0:02:59.4]} 6... Bd7
{[%clk 0:02:48.2]} 7. Bxc6 {[%clk 0:02:56.3]} 7... bxc6 {[%clk 0:02:48]} 8. Qf3
{[%clk 0:02:57.2]} 8... Be7 {[%clk 0:02:47.6]} 9. e5 {[%clk 0:02:56.1]} 9...
dxe5 {[%clk 0:02:36.4]} 10. Nxc6 {[%clk 0:02:54.5]} 10... Bg4 {[%clk 0:02:21.2]}
11. Qg3 {[%clk 0:02:26.4]} 11... Qd6 {[%clk 0:01:53]} 12. Nxe5 {[%clk
0:02:23.1]} 12... Bf5 {[%clk 0:01:47.6]} 13. O-O {[%clk 0:02:18.5]} 13... O-O
{[%clk 0:01:45.9]} 14. Qf4 {[%clk 0:02:04]} 14... Be6 {[%clk 0:01:40.4]} 15. Rd1
{[%clk 0:01:57.4]} 15... Qa6 {[%clk 0:01:36.2]} 16. Be3 {[%clk 0:01:53]} 16...
Rad8 {[%clk 0:01:32.5]} 17. Qf3 {[%clk 0:01:44.4]} 17... Bd6 {[%clk 0:01:14.2]}
18. Nc6 {[%clk 0:01:37.2]} 18... Bg4 {[%clk 0:01:14]} 19. Nxd8 {[%clk
0:01:15.2]} 19... Bxf3 {[%clk 0:01:05.8]} 20. gxf3 {[%clk 0:01:15]} 20... Rxd8
{[%clk 0:01:05.3]} 21. Rd4 {[%clk 0:01:12.9]} 21... Qb6 {[%clk 0:00:58.3]} 22.
Na4 {[%clk 0:00:45.3]} 22... Qc6 {[%clk 0:00:56.2]} 23. Rad1 {[%clk 0:00:42.5]}
23... Qxf3 {[%clk 0:00:45.4]} 24. c4 {[%clk 0:00:36.4]} 24... Ng4 {[%clk
0:00:38.1]} 25. c5 {[%clk 0:00:17.8]} 25... Bxh2+ {[%clk 0:00:29.3]} 26. Kf1
{[%clk 0:00:17.8]} 26... Nxe3+ {[%clk 0:00:29.1]} 0-1

[Event "*** Titled Tuesday Blitz"]
[Site "Chess.com"]
[Date "2020.11.10"]
[Round "7"]
[White "IceBelka"]
[Black "enriquetejedor"]
[Result "1-0"]
[WhiteElo "2340"]
[BlackElo "2476"]
[TimeControl "180+1"]
[EndTime "11:21:26 PST"]
[Termination "IceBelka won by resignation"]

1. e4 {[%clk 0:03:00.9]} 1... g6 {[%clk 0:02:02.1]} 2. d4 {[%clk 0:02:58.7]}
2... Bg7 {[%clk 0:01:59]} 3. Nc3 {[%clk 0:02:58.5]} 3... c6 {[%clk 0:01:56.7]}
4. h3 {[%clk 0:02:43.1]} 4... d5 {[%clk 0:01:49]} 5. Nf3 {[%clk 0:02:42.4]} 5...
dxe4 {[%clk 0:01:39.5]} 6. Nxe4 {[%clk 0:02:43.3]} 6... Nf6 {[%clk 0:01:39.4]}
7. Bd3 {[%clk 0:02:40.9]} 7... O-O {[%clk 0:01:22.3]} 8. O-O {[%clk 0:02:40.1]}
8... Nxe4 {[%clk 0:00:47.6]} 9. Bxe4 {[%clk 0:02:41]} 9... Nd7 {[%clk
0:00:48.5]} 10. Re1 {[%clk 0:02:38]} 10... Nf6 {[%clk 0:00:31.7]} 11. Bd3 {[%clk
0:02:36.8]} 11... Qc7 {[%clk 0:00:29.4]} 12. c3 {[%clk 0:02:34.5]} 12... c5
{[%clk 0:00:29.1]} 13. Bg5 {[%clk 0:02:18.5]} 13... b6 {[%clk 0:00:25.2]} 14.
dxc5 {[%clk 0:01:51.8]} 14... Qxc5 {[%clk 0:00:22.1]} 15. Re5 {[%clk 0:01:39.2]}
15... Qc7 {[%clk 0:00:17.4]} 16. Qe2 {[%clk 0:01:37.2]} 16... e6 {[%clk
0:00:13.5]} 17. Bf4 {[%clk 0:01:30.4]} 17... Nd5 {[%clk 0:00:11.2]} 18. Rxd5
{[%clk 0:01:24.7]} 18... Qxf4 {[%clk 0:00:07.9]} 19. Rb5 {[%clk 0:01:23.9]}
19... Bb7 {[%clk 0:00:07]} 20. Rb4 {[%clk 0:01:22.5]} 20... Qc7 {[%clk
0:00:07.2]} 21. Be4 {[%clk 0:01:22.4]} 21... Rac8 {[%clk 0:00:06.4]} 22. Bxb7
{[%clk 0:01:22]} 22... Qxb7 {[%clk 0:00:06.8]} 23. Rd1 {[%clk 0:01:22.2]} 23...
Rfd8 {[%clk 0:00:07.2]} 24. a4 {[%clk 0:01:20.3]} 24... Rxd1+ {[%clk 0:00:05.7]}
25. Qxd1 {[%clk 0:01:20.3]} 25... Bf8 {[%clk 0:00:06.6]} 26. Rd4 {[%clk
0:01:19.6]} 26... Qc6 {[%clk 0:00:06.1]} 27. Ne5 {[%clk 0:01:15.5]} 27... Qe8
{[%clk 0:00:04.5]} 28. Rd7 {[%clk 0:01:14.9]} 28... f6 {[%clk 0:00:04.6]} 29.
Ng4 {[%clk 0:01:07]} 29... Be7 {[%clk 0:00:04.7]} 30. Qd4 {[%clk 0:01:04.3]}
30... Qf7 {[%clk 0:00:02.2]} 31. Nh6+ {[%clk 0:01:02.1]} 31... Kg7 {[%clk
0:00:02.3]} 32. Nxf7 {[%clk 0:01:02.3]} 32... Kxf7 {[%clk 0:00:02.5]} 33. Rxa7
{[%clk 0:01:01.2]} 33... Rc6 {[%clk 0:00:01.9]} 34. Qd7 {[%clk 0:01:00.5]} 1-0

[Event "*** Titled Tuesday Blitz"]
[Site "Chess.com"]
[Date "2020.11.10"]
[Round "7"]
[White "Azoulas1"]
[Black "MIJuanReyesRosa"]
[Result "1-0"]
[WhiteElo "2066"]
[BlackElo "2097"]
[TimeControl "180+1"]
[EndTime "11:21:27 PST"]
[Termination "Azoulas1 won on time"]

1. e4 {[%clk 0:03:00.9]} 1... c6 {[%clk 0:02:58.1]} 2. d4 {[%clk 0:02:58.8]}
2... d5 {[%clk 0:02:57.8]} 3. Nc3 {[%clk 0:02:58.8]} 3... g6 {[%clk 0:02:56.1]}
4. e5 {[%clk 0:02:56]} 4... Bg7 {[%clk 0:02:55.2]} 5. h4 {[%clk 0:02:55.3]} 5...
f6 {[%clk 0:02:46.5]} 6. exf6 {[%clk 0:02:48.7]} 6... Nxf6 {[%clk 0:02:42.6]} 7.
h5 {[%clk 0:02:48.2]} 7... Bg4 {[%clk 0:02:38.4]} 8. f3 {[%clk 0:02:45]} 8...
Be6 {[%clk 0:02:15.2]} 9. hxg6 {[%clk 0:02:40.2]} 9... hxg6 {[%clk 0:02:13.8]}
10. Rxh8+ {[%clk 0:02:40.6]} 10... Bxh8 {[%clk 0:02:13.5]} 11. Bd3 {[%clk
0:02:40.9]} 11... Kf7 {[%clk 0:02:06.5]} 12. Nge2 {[%clk 0:02:33.4]} 12... Nbd7
{[%clk 0:02:04.3]} 13. Nf4 {[%clk 0:02:31.9]} 13... Nf8 {[%clk 0:01:58.6]} 14.
Qe2 {[%clk 0:02:23.1]} 14... Qd7 {[%clk 0:01:30.4]} 15. Bd2 {[%clk 0:02:07.6]}
15... Bf5 {[%clk 0:01:29.9]} 16. O-O-O {[%clk 0:02:03.2]} 16... Bxd3 {[%clk
0:01:25.6]} 17. Qxd3 {[%clk 0:02:02.5]} 17... Qf5 {[%clk 0:01:18.3]} 18. Qe2
{[%clk 0:01:54.2]} 18... Ne6 {[%clk 0:01:10.7]} 19. Nxe6 {[%clk 0:01:46.5]}
19... Qxe6 {[%clk 0:01:10.5]} 20. Qf2 {[%clk 0:01:40.7]} 20... Bg7 {[%clk
0:01:06.6]} 21. Re1 {[%clk 0:01:40]} 21... Qf5 {[%clk 0:01:00.7]} 22. g4 {[%clk
0:01:32.3]} 22... Qd7 {[%clk 0:00:39]} 23. Ne2 {[%clk 0:01:28.4]} 23... Rh8
{[%clk 0:00:34.2]} 24. Nf4 {[%clk 0:01:26.1]} 24... Bh6 {[%clk 0:00:29.5]} 25.
Nd3 {[%clk 0:01:23.2]} 25... Bxd2+ {[%clk 0:00:28.1]} 26. Qxd2 {[%clk
0:01:22.6]} 26... Qd6 {[%clk 0:00:26.4]} 27. Ne5+ {[%clk 0:01:21.9]} 27... Kg7
{[%clk 0:00:23.5]} 28. Qg5 {[%clk 0:01:19.3]} 28... Rh6 {[%clk 0:00:18]} 29. Qf4
{[%clk 0:01:00.4]} 29... c5 {[%clk 0:00:05]} 30. g5 {[%clk 0:00:57]} 1-0

[Event "*** Titled Tuesday Blitz"]
[Site "Chess.com"]
[Date "2020.11.10"]
[Round "7"]
[White "BogdanDeac"]
[Black "Azerichess"]
[Result "0-1"]
[WhiteElo "2803"]
[BlackElo "2972"]
[TimeControl "180+1"]
[EndTime "11:21:33 PST"]
[Termination "Azerichess won on time"]

1. Nf3 {[%clk 0:03:00.9]} 1... d5 {[%clk 0:02:58.7]} 2. d4 {[%clk 0:03:00.2]}
2... Nf6 {[%clk 0:02:58.8]} 3. c4 {[%clk 0:03:00.2]} 3... c5 {[%clk 0:02:58.1]}
4. cxd5 {[%clk 0:02:56.4]} 4... cxd4 {[%clk 0:02:57.4]} 5. Qxd4 {[%clk
0:02:56.9]} 5... Qxd5 {[%clk 0:02:56.8]} 6. Nc3 {[%clk 0:02:57.1]} 6... Qxd4
{[%clk 0:02:57.1]} 7. Nxd4 {[%clk 0:02:58]} 7... Bd7 {[%clk 0:02:55.1]} 8. e4
{[%clk 0:02:31.8]} 8... Nc6 {[%clk 0:02:52.7]} 9. Nxc6 {[%clk 0:02:26]} 9...
Bxc6 {[%clk 0:02:53.6]} 10. f3 {[%clk 0:02:26.1]} 10... e6 {[%clk 0:02:52.5]}
11. Be3 {[%clk 0:02:25.3]} 11... a6 {[%clk 0:02:51.9]} 12. Kf2 {[%clk
0:02:16.7]} 12... Nd7 {[%clk 0:02:49.6]} 13. Ne2 {[%clk 0:02:15.9]} 13... Bc5
{[%clk 0:02:47.7]} 14. Nd4 {[%clk 0:02:10]} 14... Rc8 {[%clk 0:02:47.6]} 15. Rc1
{[%clk 0:02:09]} 15... Ke7 {[%clk 0:02:42.4]} 16. Be2 {[%clk 0:01:55.2]} 16...
Bxd4 {[%clk 0:02:33.2]} 17. Bxd4 {[%clk 0:01:53.9]} 17... e5 {[%clk 0:02:34.1]}
18. Be3 {[%clk 0:01:23.4]} 18... Bb5 {[%clk 0:02:32.3]} 19. Bxb5 {[%clk
0:01:17.2]} 19... axb5 {[%clk 0:02:31.9]} 20. Rhd1 {[%clk 0:01:03.7]} 20... Rc6
{[%clk 0:02:30.3]} 21. Bd2 {[%clk 0:00:27]} 21... Rhc8 {[%clk 0:02:21.5]} 22.
Bb4+ {[%clk 0:00:26.8]} 22... Ke8 {[%clk 0:02:22.1]} 23. Rc3 {[%clk 0:00:26]}
23... Rxc3 {[%clk 0:02:10.4]} 24. Bxc3 {[%clk 0:00:24.9]} 24... f6 {[%clk
0:02:06.6]} 25. Ke2 {[%clk 0:00:18.6]} 25... Nb6 {[%clk 0:02:05.7]} 26. Rd3
{[%clk 0:00:10]} 26... Na4 {[%clk 0:01:58.4]} 27. Kd2 {[%clk 0:00:10.3]} 27...
b4 {[%clk 0:01:44.7]} 28. Bxb4 {[%clk 0:00:10.2]} 28... Nxb2 {[%clk 0:01:45.4]}
29. Rb3 {[%clk 0:00:10.6]} 29... Nc4+ {[%clk 0:01:45.8]} 30. Kd3 {[%clk
0:00:10.9]} 30... Kd7 {[%clk 0:01:26.9]} 31. Bc3 {[%clk 0:00:03.8]} 31... Rc7
{[%clk 0:01:27]} 32. Rb4 {[%clk 0:00:03]} 32... Nd6 {[%clk 0:01:26.2]} 33. a4
{[%clk 0:00:03.4]} 33... Kc6 {[%clk 0:01:22.5]} 34. Bd2 {[%clk 0:00:03.8]} 34...
Rd7 {[%clk 0:01:18.7]} 35. Kc3 {[%clk 0:00:04]} 35... b5 {[%clk 0:01:08]} 36.
Be3 {[%clk 0:00:02.7]} 36... h5 {[%clk 0:01:04.3]} 37. Bf2 {[%clk 0:00:01.5]}
37... Rd8 {[%clk 0:00:58.9]} 0-1

[Event "*** Titled Tuesday Blitz"]
[Site "Chess.com"]
[Date "2020.11.10"]
[Round "7"]
[White "exoticprincess"]
[Black "TorFredrikKaasen"]
[Result "1-0"]
[WhiteElo "2883"]
[BlackElo "2737"]
[TimeControl "180+1"]
[EndTime "11:21:34 PST"]
[Termination "exoticprincess won on time"]

1. e4 {[%clk 0:02:54]} 1... c5 {[%clk 0:02:59.7]} 2. d4 {[%clk 0:02:53.4]} 2...
cxd4 {[%clk 0:02:59.6]} 3. c3 {[%clk 0:02:53.2]} 3... Nf6 {[%clk 0:02:59.6]} 4.
e5 {[%clk 0:02:52.2]} 4... Nd5 {[%clk 0:02:59.8]} 5. Qxd4 {[%clk 0:02:52.4]}
5... e6 {[%clk 0:02:59.8]} 6. Nf3 {[%clk 0:02:52.4]} 6... Nc6 {[%clk 0:03:00]}
7. Qe4 {[%clk 0:02:51.6]} 7... d6 {[%clk 0:02:59.9]} 8. exd6 {[%clk 0:02:50.9]}
8... Bxd6 {[%clk 0:02:56.6]} 9. Bd3 {[%clk 0:02:50.9]} 9... f5 {[%clk
0:02:51.5]} 10. Qe2 {[%clk 0:02:48.2]} 10... O-O {[%clk 0:02:51.6]} 11. O-O
{[%clk 0:02:46.7]} 11... Kh8 {[%clk 0:02:42.3]} 12. Rd1 {[%clk 0:02:41.7]} 12...
Qf6 {[%clk 0:02:34.1]} 13. g3 {[%clk 0:02:28.3]} 13... e5 {[%clk 0:02:29.9]} 14.
Nbd2 {[%clk 0:02:09.2]} 14... e4 {[%clk 0:02:11.5]} 15. Nxe4 {[%clk 0:02:08.7]}
15... fxe4 {[%clk 0:02:12.4]} 16. Qxe4 {[%clk 0:02:09.6]} 16... g6 {[%clk
0:01:40.4]} 17. Qxd5 {[%clk 0:01:53.5]} 17... Qxf3 {[%clk 0:01:35.9]} 18. Qxf3
{[%clk 0:01:53.1]} 18... Rxf3 {[%clk 0:01:36.6]} 19. Be2 {[%clk 0:01:53.2]}
19... Rf6 {[%clk 0:01:30.6]} 20. Bg5 {[%clk 0:01:53.1]} 20... Be7 {[%clk
0:01:10.7]} 21. Bxf6+ {[%clk 0:01:51.8]} 21... Bxf6 {[%clk 0:01:11.6]} 22. Bf3
{[%clk 0:01:47.2]} 22... Kg7 {[%clk 0:01:10.7]} 23. Bxc6 {[%clk 0:01:38.8]}
23... bxc6 {[%clk 0:01:11.6]} 24. Rd6 {[%clk 0:01:39.2]} 24... c5 {[%clk
0:00:59.6]} 25. Rc6 {[%clk 0:01:38.8]} 25... Bh3 {[%clk 0:00:47]} 26. Rxc5
{[%clk 0:01:34.7]} 26... a5 {[%clk 0:00:46.7]} 27. a4 {[%clk 0:01:29.8]} 27...
h5 {[%clk 0:00:37]} 28. Re1 {[%clk 0:01:16.1]} 28... Rd8 {[%clk 0:00:18.5]} 29.
Rxa5 {[%clk 0:01:13.7]} 29... Rd2 {[%clk 0:00:16.6]} 30. Rb5 {[%clk 0:01:12.6]}
30... Bd7 {[%clk 0:00:08.2]} 31. Rb7 {[%clk 0:01:06.7]} 31... Kh6 {[%clk
0:00:07.8]} 32. a5 {[%clk 0:01:04.6]} 32... Bd8 {[%clk 0:00:04.6]} 33. a6 {[%clk
0:01:03.3]} 33... Bc6 {[%clk 0:00:05.2]} 34. Rb8 {[%clk 0:00:52.8]} 34... Bc7
{[%clk 0:00:01.7]} 35. a7 {[%clk 0:00:52.6]} 1-0

[Event "*** Titled Tuesday Blitz"]
[Site "Chess.com"]
[Date "2020.11.10"]
[Round "7"]
[White "Chernobay_Artem"]
[Black "Nuvas"]
[Result "1-0"]
[WhiteElo "2640"]
[BlackElo "2353"]
[TimeControl "180+1"]
[EndTime "11:21:36 PST"]
[Termination "Chernobay_Artem won by resignation"]

1. d4 {[%clk 0:03:00.3]} 1... d5 {[%clk 0:02:57.9]} 2. c4 {[%clk 0:03:00.6]}
2... c6 {[%clk 0:02:58.5]} 3. Nf3 {[%clk 0:02:59.8]} 3... Nf6 {[%clk 0:02:58.7]}
4. Nc3 {[%clk 0:03:00.1]} 4... e6 {[%clk 0:02:59.3]} 5. Bg5 {[%clk 0:03:00.2]}
5... dxc4 {[%clk 0:02:57.7]} 6. e4 {[%clk 0:03:00.2]} 6... b5 {[%clk 0:02:58.1]}
7. e5 {[%clk 0:03:00.9]} 7... h6 {[%clk 0:02:58.7]} 8. Bh4 {[%clk 0:03:00.2]}
8... g5 {[%clk 0:02:59.2]} 9. Nxg5 {[%clk 0:03:00.9]} 9... hxg5 {[%clk
0:02:59.6]} 10. Bxg5 {[%clk 0:03:01.6]} 10... Be7 {[%clk 0:02:59.8]} 11. exf6
{[%clk 0:03:00.4]} 11... Bxf6 {[%clk 0:03:00]} 12. Bxf6 {[%clk 0:02:59.9]} 12...
Qxf6 {[%clk 0:03:00.2]} 13. g3 {[%clk 0:02:54.5]} 13... Bb7 {[%clk 0:03:00]} 14.
Bg2 {[%clk 0:02:54.1]} 14... Na6 {[%clk 0:03:00]} 15. Ne4 {[%clk 0:02:46.7]}
15... Qe7 {[%clk 0:02:56.4]} 16. O-O {[%clk 0:02:43.1]} 16... O-O-O {[%clk
0:02:56.1]} 17. Qd2 {[%clk 0:02:35.6]} 17... c5 {[%clk 0:01:16.1]} 18. Qa5
{[%clk 0:02:33.8]} 18... Rxd4 {[%clk 0:01:16]} 19. Qxb5 {[%clk 0:02:30.4]} 19...
Bxe4 {[%clk 0:01:15.8]} 20. Bxe4 {[%clk 0:02:24.9]} 20... Nb4 {[%clk 0:01:04.5]}
21. Rfe1 {[%clk 0:02:06.8]} 21... Qc7 {[%clk 0:01:00.2]} 22. Rac1 {[%clk
0:01:41.4]} 22... Qb6 {[%clk 0:01:00.3]} 23. Qa4 {[%clk 0:01:36.5]} 23... Nd3
{[%clk 0:01:00.3]} 24. Bxd3 {[%clk 0:01:29]} 24... Rxd3 {[%clk 0:00:57.7]} 25.
Qxc4 {[%clk 0:01:29.1]} 25... Rd5 {[%clk 0:00:56.7]} 26. b4 {[%clk 0:01:27.2]}
26... Qc6 {[%clk 0:00:44.1]} 27. bxc5 {[%clk 0:01:05.7]} 27... Rdh5 {[%clk
0:00:43.9]} 28. h4 {[%clk 0:01:03]} 28... Rd8 {[%clk 0:00:25]} 29. Qe4 {[%clk
0:00:34.2]} 29... Kc7 {[%clk 0:00:20.4]} 30. Qf4+ {[%clk 0:00:31.5]} 30... Kc8
{[%clk 0:00:18.1]} 31. Qxf7 {[%clk 0:00:31.1]} 1-0

[Event "*** Titled Tuesday Blitz"]
[Site "Chess.com"]
[Date "2020.11.10"]
[Round "7"]
[White "Iskusnyh"]
[Black "petrpalachev"]
[Result "0-1"]
[WhiteElo "2558"]
[BlackElo "2729"]
[TimeControl "180+1"]
[EndTime "11:21:37 PST"]
[Termination "petrpalachev won by resignation"]

1. d4 {[%clk 0:03:00.9]} 1... d5 {[%clk 0:02:56.3]} 2. c4 {[%clk 0:03:01.3]}
2... Nc6 {[%clk 0:02:55.9]} 3. Nc3 {[%clk 0:02:56.1]} 3... e6 {[%clk 0:02:53.6]}
4. Nf3 {[%clk 0:02:54.5]} 4... Nf6 {[%clk 0:02:51.6]} 5. Bg5 {[%clk 0:02:49.3]}
5... Bb4 {[%clk 0:02:44.8]} 6. e3 {[%clk 0:02:47.7]} 6... O-O {[%clk 0:02:43.7]}
7. Be2 {[%clk 0:02:45.8]} 7... h6 {[%clk 0:02:41.4]} 8. Bh4 {[%clk 0:02:45.1]}
8... dxc4 {[%clk 0:02:36.9]} 9. Bxc4 {[%clk 0:02:43.5]} 9... b6 {[%clk
0:02:37.4]} 10. O-O {[%clk 0:02:41.6]} 10... Bb7 {[%clk 0:02:37.5]} 11. Qc2
{[%clk 0:02:39.4]} 11... Be7 {[%clk 0:02:37.8]} 12. Rad1 {[%clk 0:02:37.9]}
12... Nb4 {[%clk 0:02:36.5]} 13. Qb1 {[%clk 0:02:27.1]} 13... Nbd5 {[%clk
0:02:37.4]} 14. Ne5 {[%clk 0:02:17.8]} 14... Nxc3 {[%clk 0:02:33.7]} 15. bxc3
{[%clk 0:02:16.7]} 15... Ne4 {[%clk 0:02:34.6]} 16. Bxe7 {[%clk 0:02:05.3]}
16... Qxe7 {[%clk 0:02:35.5]} 17. Qc2 {[%clk 0:02:00.6]} 17... Rfd8 {[%clk
0:02:34.8]} 18. Bd3 {[%clk 0:02:00.2]} 18... Nd6 {[%clk 0:02:30.9]} 19. e4
{[%clk 0:01:52.4]} 19... c5 {[%clk 0:02:29]} 20. Qe2 {[%clk 0:01:51.7]} 20...
Rac8 {[%clk 0:02:25.1]} 21. h3 {[%clk 0:01:45.1]} 21... cxd4 {[%clk 0:02:17.3]}
22. cxd4 {[%clk 0:01:44.2]} 22... Ne8 {[%clk 0:02:18.2]} 23. Bb1 {[%clk
0:01:29.2]} 23... Nf6 {[%clk 0:02:18.8]} 24. Qe3 {[%clk 0:01:24.9]} 24... Rc7
{[%clk 0:02:18.5]} 25. Rc1 {[%clk 0:01:21.9]} 25... Rdc8 {[%clk 0:02:18.9]} 26.
Rxc7 {[%clk 0:01:21.7]} 26... Qxc7 {[%clk 0:02:19.8]} 27. Rd1 {[%clk 0:01:20.6]}
27... Qc3 {[%clk 0:02:11.5]} 28. Qf4 {[%clk 0:01:20.2]} 28... Qb2 {[%clk
0:02:02.8]} 29. Nxf7 {[%clk 0:01:13.7]} 29... Kxf7 {[%clk 0:01:44.1]} 30. e5
{[%clk 0:01:13.4]} 30... Qe2 {[%clk 0:01:44.4]} 31. Rf1 {[%clk 0:01:06.8]} 31...
Ba6 {[%clk 0:01:44.2]} 32. Rc1 {[%clk 0:00:56.3]} 32... Rxc1+ {[%clk 0:01:43.2]}
33. Qxc1 {[%clk 0:00:55.5]} 33... Nd5 {[%clk 0:01:43.6]} 34. Bh7 {[%clk
0:00:40.7]} 34... Bd3 {[%clk 0:01:35.8]} 35. Bxd3 {[%clk 0:00:36.6]} 35... Qxd3
{[%clk 0:01:36.7]} 36. Qc6 {[%clk 0:00:36.1]} 36... Qb1+ {[%clk 0:01:18.1]} 37.
Kh2 {[%clk 0:00:34.9]} 37... Qxa2 {[%clk 0:01:19]} 38. Qd7+ {[%clk 0:00:28.8]}
38... Ne7 {[%clk 0:01:18.8]} 39. f4 {[%clk 0:00:29.2]} 39... Qd5 {[%clk
0:01:16.7]} 40. Qxa7 {[%clk 0:00:28.4]} 40... Qxd4 {[%clk 0:01:16.8]} 41. g3
{[%clk 0:00:25.1]} 41... Qf2+ {[%clk 0:01:16.5]} 42. Kh1 {[%clk 0:00:24.7]}
42... h5 {[%clk 0:01:12.8]} 43. f5 {[%clk 0:00:20.7]} 43... Qxf5 {[%clk
0:01:05.7]} 44. Qxb6 {[%clk 0:00:19.8]} 44... Qxh3+ {[%clk 0:01:05.8]} 45. Kg1
{[%clk 0:00:19.5]} 45... Qxg3+ {[%clk 0:01:06.7]} 46. Kh1 {[%clk 0:00:20]} 46...
Qxe5 {[%clk 0:01:06]} 47. Qb7 {[%clk 0:00:19]} 47... Qd5+ {[%clk 0:01:05.1]} 0-1